fUST/lending_fUST_20250626
["ID","MTS","AMOUNT","RATE_DAILY","PERIOD"]
[367782995,1750930252577,-277.33659,0.00020244,2]
[367782997,1750930252586,-184.0,0.00020259,2]
[367782998,1750930252597,-184.0,0.00020266,2]
[367783000,1750930252606,-1039.39,0.00020273,2]
[367783003,1750930252615,-485.58,0.00020273,2]
[367783005,1750930252625,-554.51,0.00020273,2]
[367783007,1750930252634,-1476.85,0.00020273,2]
[367783009,1750930252643,-1801.72,0.00020273,2]
[367783011,1750930252652,-1419.91,0.00020273,2]
[367783013,1750930252662,-954.97,0.00020273,2]
[367783015,1750930252671,-597.64,0.00020273,2]
[367783017,1750930252681,-460.0,0.00020273,2]
[367783019,1750930252690,-673.75,0.00020273,2]
[367783021,1750930252699,-460.0,0.00020273,2]
[367783023,1750930252709,-604.88,0.00020273,2]
[367783025,1750930252719,-999.06,0.00020273,2]
[367783027,1750930252728,-1231.87040078,0.00020298,6]
[367783029,1750930252737,-160.0,0.000203,7]
[367783031,1750930252746,-160.0,0.000203,3]
[367783033,1750930252755,-205.0,0.000203,3]
[367783035,1750930252764,-160.0,0.000203,4]
[367783037,1750930252773,-160.0,0.000203,5]
[367783039,1750930252783,-160.0,0.000203,6]
[367783041,1750930252792,-160.0,0.000203,5]
[367783043,1750930252801,-160.0,0.000203,5]
[367783045,1750930252810,-2371.99531623,0.00020314,3]
[367783047,1750930252819,-168.0,0.00020325,2]
[367783049,1750930252828,-460.0,0.00020345,2]
[367783051,1750930252838,-206.08478,0.00020345,2]
[367783053,1750930252847,-650.8,0.00020345,2]
[367783055,1750930252856,-891.59,0.00020345,2]
[367783057,1750930252865,-2092.2,0.00020345,2]
[367783059,1750930252874,-619.42,0.00020345,2]
[367783061,1750930252883,-200.64,0.00020346,2]
[367783063,1750930252892,-460.0,0.00020346,2]
[367783065,1750930252902,-471.55,0.00020346,2]
[367783067,1750930252911,-215.0738,0.00020355,2]
[367783069,1750930252921,-200.0,0.0002036,2]
[367783071,1750930252930,-168.0,0.00020469,2]
[367783083,1750930253031,-20194.70081002,0.000205,2]
[367783100,1750930253179,-303.43,0.00019438,2]
[367785051,1750930273832,153.44956,0.00023,30]
[367787255,1750930408423,24900.0,0.00015928,2]
[367787257,1750930444910,163.229857,0.00013699,2]
[367787267,1750931108592,153.44956,0.00023,30]
[367787292,1750931432321,-8913.86659637,0.00016326,2]
[367787293,1750931432334,-990.06347528,0.00016326,2]
[367787294,1750931432346,-40187.34845897,0.00016326,2]
[367787295,1750931432355,-926.79199317,0.00016338,2]
[367787296,1750931432366,-1200.0,0.00016426,2]
[367787297,1750931432375,-1200.0,0.00016427,2]
[367787298,1750931432385,-300.0,0.00016427,2]
[367787299,1750931432394,-300.0,0.00016427,2]
[367787300,1750931432404,-300.0,0.00016427,2]
[367787301,1750931432413,-300.0,0.00016427,2]
[367787302,1750931432422,-50000.0,0.00016428,2]
[367787303,1750931432432,-512.04,0.00016428,3]
[367787304,1750931432441,-1176.67,0.00016428,3]
[367787305,1750931432451,-588.34,0.00016428,3]
[367787306,1750931432461,-294.17,0.00016428,3]
[367787307,1750931432470,-882.53,0.00016428,3]
[367787308,1750931432480,-501.27765106,0.00016438,2]
[367787309,1750931432490,-460.0,0.00016438,2]
[367787310,1750931432499,-460.0,0.00016438,2]
[367787311,1750931432508,-460.0,0.00016438,2]
[367787312,1750931432518,-460.0,0.00016438,2]
[367787313,1750931432527,-501.83076462,0.00016438,2]
[367787314,1750931432537,-460.0,0.00016438,2]
[367787315,1750931432546,-460.0,0.00016438,2]
[367787316,1750931432556,-460.0,0.00016438,2]
[367787317,1750931432566,-460.0,0.00016438,2]
[367787318,1750931432575,-460.0,0.00016438,2]
[367787319,1750931432583,-460.0,0.00016438,2]
[367787320,1750931432592,-460.0,0.00016438,2]
[367787321,1750931432602,-426.75246136,0.00016438,2]
[367787322,1750931432611,-460.0,0.00016438,2]
[367787323,1750931432787,-460.0,0.00016438,2]
[367787324,1750931432797,-460.0,0.00016438,2]
[367787325,1750931432806,-460.0,0.00016438,2]
[367787326,1750931432815,-460.0,0.00016438,2]
[367787327,1750931432824,-460.0,0.00016438,2]
[367787328,1750931432834,-460.0,0.00016438,2]
[367787329,1750931432843,-460.0,0.00016438,2]
[367787330,1750931432852,-460.0,0.00016438,2]
[367787331,1750931432862,-460.0,0.00016438,2]
[367787332,1750931432873,-460.0,0.00016438,2]
[367787333,1750931432883,-460.0,0.00016438,2]
[367787334,1750931432892,-282.09363377,0.00016438,2]
[367787335,1750931432901,-464.41560086,0.00016438,2]
[367787336,1750931432911,-1666.97,0.00016438,2]
[367787337,1750931432920,-466.35183214,0.00016438,2]
[367787338,1750931432930,-460.0,0.00016438,2]
[367787339,1750931432939,-460.0,0.00016438,2]
[367787340,1750931432948,-460.0,0.00016438,2]
[367787341,1750931432957,-460.0,0.00016438,2]
[367787342,1750931432966,-460.0,0.00016438,2]
[367787343,1750931432974,-460.0,0.00016438,2]
[367787344,1750931432983,-460.0,0.00016438,2]
[367787345,1750931432992,-392.61,0.00016438,2]
[367787346,1750931433001,-460.0,0.00016438,2]
[367787347,1750931433011,-442.76133526,0.00016438,2]
[367787348,1750931433021,-434.32177387,0.00016438,2]
[367787349,1750931433030,-403.48951065,0.00016438,2]
[367787350,1750931433040,-312.19294012,0.00016438,2]
[367787351,1750931433050,-460.0,0.00016438,2]
[367787352,1750931433059,-462.45484069,0.00016438,2]
[367787353,1750931433069,-542.13797485,0.00016438,2]
[367787354,1750931433078,-460.0,0.00016438,2]
[367787355,1750931433088,-460.0,0.00016438,2]
[367787356,1750931433097,-460.0,0.00016438,2]
[367787357,1750931433107,-460.0,0.00016438,2]
[367787358,1750931433117,-460.0,0.00016438,2]
[367787359,1750931433126,-500.0,0.00016438,2]
[367787360,1750931433135,-460.0,0.00016438,2]
[367787361,1750931433145,-119.20224568,0.00016438,2]
[367787362,1750931433331,-334.72359993,0.00016438,2]
[367787363,1750931433341,-460.0,0.00016438,2]
[367787364,1750931433350,-143.53640007,0.00016438,2]
[367787365,1750931433362,-264.90611927,0.00016438,2]
[367787366,1750931433372,-460.0,0.00016438,2]
[367787367,1750931433382,-460.0,0.00016438,2]
[367787368,1750931433391,-460.0,0.00016438,2]
[367787369,1750931433401,-460.0,0.00016438,2]
[367787370,1750931433410,-460.0,0.00016438,2]
[367787371,1750931433419,-460.0,0.00016438,2]
[367787372,1750931433429,-460.0,0.00016438,2]
[367787373,1750931433439,-247.62029365,0.00016438,2]
[367787374,1750931433449,-461.08430158,0.00016438,2]
[367787375,1750931433458,-571.76,0.00016438,2]
[367787376,1750931433468,-460.0,0.00016438,2]
[367787377,1750931433477,-460.0,0.00016438,2]
[367787378,1750931433486,-460.0,0.00016438,2]
[367787379,1750931433495,-419.42304727,0.00016438,2]
[367787380,1750931433504,-460.0,0.00016438,2]
[367787381,1750931433513,-460.0,0.00016438,2]
[367787382,1750931433523,-460.0,0.00016438,2]
[367787383,1750931433533,-591.37055787,0.00016438,2]
[367787384,1750931433543,-460.0,0.00016438,2]
[367787385,1750931433553,-392.08948159,0.00016438,2]
[367787413,1750931438269,-78.88489821,0.00016438,2]
[367787414,1750931438279,-460.0,0.00016438,2]
[367787416,1750931438289,-460.0,0.00016438,2]
[367787418,1750931438298,-460.0,0.00016438,2]
[367787419,1750931438308,-460.0,0.00016438,2]
[367787420,1750931438317,-488.53641425,0.00016438,2]
[367787421,1750931438327,-460.0,0.00016438,2]
[367787422,1750931438337,-430.0,0.00016438,2]
[367787423,1750931438346,-460.0,0.00016438,2]
[367787424,1750931438356,-151.0550023,0.00016438,2]
[367787425,1750931438365,-151.03776761,0.00016438,2]
[367787426,1750931438375,-460.0,0.00016438,2]
[367787427,1750931438385,-460.0,0.00016438,2]
[367787428,1750931438394,-460.0,0.00016438,2]
[367787430,1750931438403,-450.36509458,0.00016438,2]
[367787431,1750931438413,-463.19766414,0.00016438,2]
[367787432,1750931438422,-381.91533352,0.00016438,2]
[367787433,1750931438432,-460.0,0.00016438,2]
[367787434,1750931438441,-460.0,0.00016438,2]
[367787435,1750931438450,-460.0,0.00016438,2]
[367787436,1750931438460,-192.34,0.00016438,2]
[367787437,1750931438469,-460.0,0.00016438,2]
[367787438,1750931438478,-1527.0,0.00016438,2]
[367787439,1750931438488,-155.97576151,0.00016438,2]
[367787440,1750931438498,-151.0,0.00016438,2]
[367787441,1750931438507,-151.0,0.00016438,2]
[367787442,1750931438516,-151.0,0.00016438,2]
[367787443,1750931438525,-151.0,0.00016438,2]
[367787444,1750931438534,-151.00208844,0.00016438,2]
[367787445,1750931438543,-460.0,0.00016438,2]
[367787446,1750931438553,-460.0,0.00016438,2]
[367787447,1750931438562,-460.0,0.00016438,2]
[367787448,1750931438572,-460.0,0.00016438,2]
[367787449,1750931438581,-460.0,0.00016438,2]
[367787450,1750931438591,-460.0,0.00016438,2]
[367787451,1750931438601,-460.0,0.00016438,2]
[367787452,1750931438611,-460.0,0.00016438,2]
[367787453,1750931438620,-460.0,0.00016438,2]
[367787454,1750931438630,-500.0,0.00016438,2]
[367787455,1750931438639,-500.0,0.00016438,2]
[367787456,1750931438649,-500.0,0.00016438,2]
[367787457,1750931438658,-460.0,0.00016438,2]
[367787458,1750931438667,-460.0,0.00016438,2]
[367787459,1750931438676,-849.82,0.00016438,2]
[367787460,1750931438686,-460.0,0.00016438,2]
[367787461,1750931438696,-460.0,0.00016438,2]
[367787462,1750931438705,-460.0,0.00016438,2]
[367787463,1750931438715,-468.88885646,0.00016438,2]
[367787464,1750931438724,-294.76241709,0.00016438,2]
[367787465,1750931438734,-460.0,0.00016438,2]
[367787466,1750931438743,-460.0,0.00016438,2]
[367787467,1750931438753,-460.27,0.00016438,2]
[367787468,1750931438763,-460.0,0.00016438,2]
[367787469,1750931438772,-460.0,0.00016438,2]
[367787470,1750931438781,-460.0,0.00016438,2]
[367787471,1750931438791,-468.36743916,0.00016438,2]
[367787472,1750931438800,-460.0,0.00016438,2]
[367787473,1750931438809,-460.0,0.00016438,2]
[367787474,1750931438818,-460.0,0.00016438,2]
[367787475,1750931438828,-460.0,0.00016438,2]
[367787476,1750931438838,-470.09170299,0.00016438,2]
[367787477,1750931438847,-249.54348696,0.00016438,2]
[367787478,1750931438856,-460.0,0.00016438,2]
[367787479,1750931438866,-460.0,0.00016438,2]
[367787480,1750931438876,-460.0,0.00016438,2]
[367787481,1750931438886,-460.0,0.00016438,2]
[367787482,1750931438895,-460.0,0.00016438,2]
[367787483,1750931438904,-468.57960605,0.00016438,2]
[367787484,1750931438914,-460.0,0.00016438,2]
[367787485,1750931438923,-460.0,0.00016438,2]
[367787486,1750931438932,-460.0,0.00016438,2]
[367787487,1750931439079,-463.19751842,0.00016438,2]
[367787488,1750931439089,-460.0,0.00016438,2]
[367787489,1750931439099,-460.0,0.00016438,2]
[367787490,1750931439109,-406.25224806,0.00016438,2]
[367787491,1750931439118,-460.0,0.00016438,2]
[367787492,1750931439128,-460.0,0.00016438,2]
[367787493,1750931439136,-460.0,0.00016438,2]
[367787494,1750931439147,-460.0,0.00016438,2]
[367787495,1750931439159,-460.0,0.00016438,2]
[367787496,1750931439168,-461.83989476,0.00016438,2]
[367787497,1750931439178,-460.0,0.00016438,2]
[367787498,1750931439188,-460.0,0.00016438,2]
[367787499,1750931439198,-460.0,0.00016438,2]
[367787500,1750931439207,-588.47926251,0.00016438,2]
[367787501,1750931439217,-1141.75,0.00016438,2]
[367787502,1750931439227,-460.0,0.00016438,2]
[367787503,1750931439237,-460.0,0.00016438,2]
[367787504,1750931439247,-460.0,0.00016438,2]
[367787505,1750931439257,-256.00630717,0.00016438,2]
[367787506,1750931439266,-460.0,0.00016438,2]
[367787507,1750931439275,-460.0,0.00016438,2]
[367787508,1750931439285,-460.0,0.00016438,2]
[367787509,1750931439294,-460.0,0.00016438,2]
[367787510,1750931439303,-460.0,0.00016438,2]
[367787511,1750931439313,-460.0,0.00016438,2]
[367787512,1750931439322,-163.68721255,0.00016438,2]
[367787513,1750931439332,-460.0,0.00016438,2]
[367787514,1750931439342,-460.0,0.00016438,2]
[367787515,1750931439352,-460.0,0.00016438,2]
[367787516,1750931439361,-460.0,0.00016438,2]
[367787517,1750931439371,-320.0,0.00016438,2]
[367787518,1750931439380,-460.0,0.00016438,2]
[367787519,1750931439390,-460.0,0.00016438,2]
[367787520,1750931439399,-460.0,0.00016438,2]
[367787521,1750931439408,-460.0,0.00016438,2]
[367787522,1750931439417,-468.23981492,0.00016438,2]
[367787523,1750931439427,-180.93693195,0.00016438,2]
[367787524,1750931439436,-460.0,0.00016438,2]
[367787525,1750931439446,-460.0,0.00016438,2]
[367787526,1750931439456,-460.0,0.00016438,2]
[367787527,1750931439466,-460.0,0.00016438,2]
[367787528,1750931439476,-460.0,0.00016438,2]
[367787529,1750931439487,-460.0,0.00016438,2]
[367787530,1750931439497,-460.0,0.00016438,2]
[367787531,1750931439506,-801.14,0.00016438,2]
[367787532,1750931439516,-460.0,0.00016438,2]
[367787533,1750931439527,-460.0,0.00016438,2]
[367787534,1750931439537,-492.26,0.00016438,2]
[367787535,1750931439548,-460.0,0.00016438,2]
[367787536,1750931439559,-460.0,0.00016438,2]
[367787537,1750931439569,-464.00161492,0.00016438,2]
[367787538,1750931439579,-460.0,0.00016438,2]
[367787539,1750931439589,-460.0,0.00016438,2]
[367787540,1750931439599,-468.49129099,0.00016438,2]
[367787541,1750931439612,-460.0,0.00016438,2]
[367787542,1750931439623,-500.0,0.00016438,2]
[367787543,1750931439632,-1000.0,0.00016438,2]
[367787544,1750931439643,-1000.0,0.00016438,2]
[367787545,1750931439653,-1000.0,0.00016438,2]
[367787546,1750931439663,-1000.0,0.00016438,2]
[367787547,1750931439673,-460.0,0.00016438,2]
[367787548,1750931439682,-460.0,0.00016438,2]
[367787549,1750931439692,-460.0,0.00016438,2]
[367787550,1750931439701,-460.0,0.00016438,2]
[367787551,1750931439712,-460.0,0.00016438,2]
[367787552,1750931439722,-1366.28,0.00016438,2]
[367787553,1750931439732,-460.0,0.00016438,2]
[367787554,1750931439741,-1780.45,0.00016438,2]
[367787555,1750931439751,-460.0,0.00016438,2]
[367787556,1750931439761,-460.0,0.00016438,2]
[367787557,1750931439771,-460.0,0.00016438,2]
[367787558,1750931439781,-460.0,0.00016438,2]
[367787559,1750931439790,-460.0,0.00016438,2]
[367787560,1750931439800,-460.0,0.00016438,2]
[367787561,1750931439810,-460.0,0.00016438,2]
[367787562,1750931439819,-460.0,0.00016438,2]
[367787563,1750931439830,-460.0,0.00016438,2]
[367787564,1750931439839,-460.0,0.00016438,2]
[367787565,1750931439850,-460.0,0.00016438,2]
[367787566,1750931439859,-587.64,0.00016438,2]
[367787567,1750931439869,-460.0,0.00016438,2]
[367787568,1750931439879,-460.0,0.00016438,2]
[367787570,1750931439889,-460.0,0.00016438,2]
[367787571,1750931439898,-460.0,0.00016438,2]
[367787572,1750931439907,-460.0,0.00016438,2]
[367787573,1750931439917,-460.0,0.00016438,2]
[367787574,1750931439926,-460.0,0.00016438,2]
[367787575,1750931439936,-460.0,0.00016438,2]
[367787576,1750931439945,-460.0,0.00016438,2]
[367787577,1750931439956,-460.0,0.00016438,2]
[367787578,1750931439967,-739.92,0.00016438,2]
[367787579,1750931439976,-460.0,0.00016438,2]
[367787580,1750931439986,-460.0,0.00016438,2]
[367787582,1750931439995,-460.0,0.00016438,2]
[367787584,1750931440004,-460.0,0.00016438,2]
[367787586,1750931440014,-460.0,0.00016438,2]
[367787587,1750931440023,-460.0,0.00016438,2]
[367787588,1750931440032,-463.56,0.00016438,2]
[367787589,1750931440042,-460.0,0.00016438,2]
[367787590,1750931440051,-460.0,0.00016438,2]
[367787591,1750931440060,-460.0,0.00016438,2]
[367787592,1750931440070,-460.0,0.00016438,2]
[367787593,1750931440079,-460.0,0.00016438,2]
[367787594,1750931440089,-460.0,0.00016438,2]
[367787596,1750931440098,-460.0,0.00016438,2]
[367787598,1750931440108,-460.0,0.00016438,2]
[367787600,1750931440117,-460.0,0.00016438,2]
[367787602,1750931440127,-460.0,0.00016438,2]
[367787604,1750931440136,-460.0,0.00016438,2]
[367787606,1750931440147,-460.0,0.00016438,2]
[367787608,1750931440158,-162.43068417,0.00016438,2]
[367787610,1750931440167,-460.0,0.00016438,2]
[367787612,1750931440176,-460.0,0.00016438,2]
[367787615,1750931440187,-944.31,0.00016438,2]
[367787616,1750931440196,-1906.58,0.00016438,2]
[367787618,1750931440205,-563.27,0.00016438,2]
[367787620,1750931440215,-460.0,0.00016438,2]
[367787622,1750931440224,-151.0,0.00016438,2]
[367787624,1750931440233,-151.0,0.00016438,2]
[367787626,1750931440243,-2845.9,0.00016438,2]
[367787628,1750931440252,-460.0,0.00016438,2]
[367787630,1750931440261,-460.0,0.00016438,2]
[367787632,1750931440271,-460.0,0.00016438,2]
[367787634,1750931440281,-460.0,0.00016438,2]
[367787636,1750931440290,-1303.99,0.00016438,2]
[367787638,1750931440299,-1303.99,0.00016438,2]
[367787640,1750931440308,-1303.99,0.00016438,2]
[367787642,1750931440317,-460.0,0.00016438,2]
[367787644,1750931440327,-956.87,0.00016438,2]
[367787646,1750931440336,-460.0,0.00016438,2]
[367787648,1750931440346,-460.0,0.00016438,2]
[367787650,1750931440356,-460.0,0.00016438,2]
[367787652,1750931440365,-460.0,0.00016438,2]
[367787654,1750931440374,-500.0,0.00016438,2]
[367787656,1750931440384,-460.0,0.00016438,2]
[367787658,1750931440394,-460.0,0.00016438,2]
[367787660,1750931440403,-2288.17,0.00016438,2]
[367787662,1750931440413,-460.0,0.00016438,2]
[367787664,1750931440422,-460.0,0.00016438,2]
[367787666,1750931440431,-460.0,0.00016438,2]
[367787668,1750931440441,-460.0,0.00016438,2]
[367787670,1750931440450,-580.79,0.00016438,2]
[367787672,1750931440460,-460.0,0.00016438,2]
[367787674,1750931440469,-460.0,0.00016438,2]
[367787676,1750931440478,-460.0,0.00016438,2]
[367787678,1750931440487,-460.0,0.00016438,2]
[367787680,1750931440498,-460.0,0.00016438,2]
[367787682,1750931440507,-460.0,0.00016438,2]
[367787684,1750931440516,-460.0,0.00016438,2]
[367787686,1750931440525,-1198.56,0.00016438,2]
[367787688,1750931440534,-460.0,0.00016438,2]
[367787690,1750931440543,-463.87550074,0.00016438,2]
[367787692,1750931440552,-460.0,0.00016438,2]
[367787694,1750931440561,-460.0,0.00016438,2]
[367787696,1750931440571,-460.0,0.00016438,2]
[367787698,1750931440579,-460.0,0.00016438,2]
[367787700,1750931440589,-1231.48,0.00016438,2]
[367787702,1750931440598,-460.0,0.00016438,2]
[367787704,1750931440607,-484.19511505,0.00016438,2]
[367787706,1750931440617,-460.0,0.00016438,2]
[367787708,1750931440626,-460.0,0.00016438,2]
[367787710,1750931440635,-460.0,0.00016438,2]
[367787712,1750931440644,-460.0,0.00016438,2]
[367787714,1750931440654,-460.0,0.00016438,2]
[367787716,1750931440663,-460.0,0.00016438,2]
[367787718,1750931440673,-463.34039157,0.00016438,2]
[367787720,1750931440682,-1166.94,0.00016438,2]
[367787722,1750931440691,-883.45,0.00016438,2]
[367787724,1750931440701,-460.0,0.00016438,2]
[367787726,1750931440711,-460.0,0.00016438,2]
[367787728,1750931440721,-912.34,0.00016438,2]
[367787730,1750931440730,-460.0,0.00016438,2]
[367787732,1750931440739,-460.0,0.00016438,2]
[367787734,1750931440748,-773.09,0.00016438,2]
[367787736,1750931440757,-460.0,0.00016438,2]
[367787738,1750931440766,-460.0,0.00016438,2]
[367787740,1750931440775,-460.0,0.00016438,2]
[367787742,1750931440784,-460.0,0.00016438,2]
[367787744,1750931440793,-460.0,0.00016438,2]
[367787746,1750931440803,-460.0,0.00016438,2]
[367787748,1750931440811,-479.37,0.00016438,2]
[367787750,1750931440821,-460.0,0.00016438,2]
[367787752,1750931440830,-460.0,0.00016438,2]
[367787754,1750931440839,-460.0,0.00016438,2]
[367787756,1750931440847,-460.0,0.00016438,2]
[367787758,1750931440856,-460.0,0.00016438,2]
[367787760,1750931440866,-464.44888353,0.00016438,2]
[367787762,1750931440875,-460.0,0.00016438,2]
[367787764,1750931440884,-460.0,0.00016438,2]
[367787766,1750931440894,-464.28704507,0.00016438,2]
[367787768,1750931440903,-587.86249384,0.00016438,2]
[367787770,1750931440912,-460.0,0.00016438,2]
[367787772,1750931440921,-460.0,0.00016438,2]
[367787773,1750931440931,-460.0,0.00016438,2]
[367787775,1750931440941,-460.0,0.00016438,2]
[367787777,1750931440950,-460.0,0.00016438,2]
[367787779,1750931440959,-460.0,0.00016438,2]
[367787781,1750931440969,-460.0,0.00016438,2]
[367787783,1750931440978,-460.0,0.00016438,2]
[367787785,1750931440987,-460.0,0.00016438,2]
[367787787,1750931440997,-460.0,0.00016438,2]
[367787789,1750931441006,-232.94657061,0.00016438,2]
[367787792,1750931441015,-2940.97,0.00016438,2]
[367787793,1750931441025,-1025.01,0.00016438,2]
[367787795,1750931441034,-838.22,0.00016438,2]
[367787797,1750931441043,-460.0,0.00016438,2]
[367787799,1750931441053,-460.0,0.00016438,2]
[367787801,1750931441063,-460.0,0.00016438,2]
[367787803,1750931441073,-460.0,0.00016438,2]
[367787805,1750931441082,-460.0,0.00016438,2]
[367787807,1750931441091,-460.0,0.00016438,2]
[367787809,1750931441101,-206.55776585,0.00016438,2]
[367787811,1750931441110,-460.46496704,0.00016438,2]
[367787813,1750931441120,-460.0,0.00016438,2]
[367787815,1750931441129,-460.0,0.00016438,2]
[367787817,1750931441138,-460.0,0.00016438,2]
[367787819,1750931441151,-460.0,0.00016438,2]
[367787821,1750931441161,-460.0,0.00016438,2]
[367787823,1750931441170,-1875.0,0.00016438,2]
[367787825,1750931441180,-202.27125954,0.00016438,2]
[367787827,1750931441189,-460.0,0.00016438,2]
[367787829,1750931441198,-460.0,0.00016438,2]
[367787831,1750931441207,-460.0,0.00016438,2]
[367787833,1750931441217,-460.0,0.00016438,2]
[367787835,1750931441229,-460.0,0.00016438,2]
[367787837,1750931441238,-460.0,0.00016438,2]
[367787851,1750931441352,-460.0,0.00016438,2]
[367787853,1750931441362,-214.90005467,0.00016438,2]
[367787855,1750931441372,-500.0,0.00016438,2]
[367787857,1750931441381,-460.0,0.00016438,2]
[367787859,1750931441390,-460.0,0.00016438,2]
[367787861,1750931441399,-500.0,0.00016438,2]
[367787863,1750931441409,-500.0,0.00016438,2]
[367787865,1750931441417,-1527.0,0.00016465,2]
[367787867,1750931441427,-152.27517289,0.00016465,2]
[367787869,1750931441436,-245.0,0.00016465,2]
[367787871,1750931441446,-500.0,0.00016465,2]
[367787872,1750931441455,-1875.0,0.00016465,2]
[367787874,1750931441464,-500.0,0.00016465,2]
[367787876,1750931441473,-557.29819206,0.00016465,2]
[367787878,1750931441483,-1527.0,0.00016493,2]
[367787880,1750931441492,-598.22532481,0.00016493,2]
[367787882,1750931441501,-1875.0,0.00016493,2]
[367787884,1750931441510,-500.0,0.00016493,2]
[367787886,1750931441519,-1527.0,0.0001652,2]
[367787889,1750931441529,-1875.0,0.0001652,2]
[367787891,1750931441539,-500.0,0.0001652,2]
[367787892,1750931441548,-926.79199313,0.00016544,2]
[367787894,1750931441557,-1527.0,0.00016548,2]
[367787896,1750931441568,-1875.0,0.00016548,2]
[367787898,1750931441577,-362.92671865,0.00016548,2]
[367787900,1750931441586,-1527.0,0.00016575,2]
[367787902,1750931441595,-1875.0,0.00016575,2]
[367787905,1750931441605,-1527.0,0.00016602,2]
[367787907,1750931441615,-1875.0,0.00016602,2]
[367787908,1750931441625,-1527.0,0.0001663,2]
[367787910,1750931441634,-1875.0,0.0001663,2]
[367787912,1750931441643,-1527.0,0.00016657,2]
[367787914,1750931441652,-1875.0,0.00016657,2]
[367787916,1750931441661,-1527.0,0.00016685,2]
[367787918,1750931441671,-1875.0,0.00016685,2]
[367787920,1750931441680,-155.95160573,0.00016709,2]
[367787922,1750931441690,-500.0,0.00016709,2]
[367787925,1750931441699,-500.0,0.00016709,2]
[367787926,1750931441708,-500.0,0.00016709,2]
[367787928,1750931441718,-500.0,0.00016709,2]
[367787931,1750931441727,-500.0,0.00016709,2]
[367787933,1750931441737,-500.0,0.00016709,2]
[367787935,1750931441746,-500.0,0.00016709,2]
[367787937,1750931441755,-500.0,0.00016709,2]
[367787939,1750931441765,-500.0,0.00016709,2]
[367787941,1750931441773,-500.0,0.00016709,2]
[367787943,1750931441782,-500.0,0.00016709,2]
[367787945,1750931441791,-500.0,0.00016709,2]
[367787947,1750931441802,-500.0,0.00016709,2]
[367787949,1750931441811,-500.0,0.00016709,2]
[367787950,1750931441821,-500.0,0.00016709,2]
[367787953,1750931441831,-500.0,0.00016709,2]
[367787955,1750931441841,-500.85059172,0.00016709,2]
[367787956,1750931441850,-500.0,0.00016709,2]
[367787958,1750931441860,-500.0,0.00016709,2]
[367787960,1750931441869,-500.0,0.00016709,2]
[367787962,1750931441880,-500.0,0.00016709,2]
[367787964,1750931441889,-500.0,0.00016709,2]
[367787966,1750931441899,-500.0,0.00016709,2]
[367787968,1750931441908,-370.40069938,0.00016709,2]
[367787970,1750931441918,-500.0,0.00016709,2]
[367787972,1750931441927,-500.0,0.00016709,2]
[367787974,1750931441936,-500.0,0.00016709,2]
[367787976,1750931441945,-500.0,0.00016709,2]